fUST/lending_fUST_20240321
["ID","MTS","AMOUNT","RATE_DAILY","PERIOD"]
[319754775,1710960633328,-500.0,0.00024891,2]
[319754776,1710960633338,-500.0,0.00024891,2]
[319754777,1710960633347,-555.87,0.00024891,2]
[319754778,1710960633356,-500.0,0.00024891,2]
[319754779,1710960633366,-500.0,0.00024891,2]
[319754780,1710960633375,-500.0,0.00024891,2]
[319754781,1710960633384,-875.62,0.00024891,2]
[319754782,1710960633393,-712.76,0.00024891,2]
[319754783,1710960633402,-342.10691551,0.00024891,2]
[319754784,1710960633411,-500.0,0.00024891,2]
[319754785,1710960633421,-500.0,0.00024891,2]
[319754786,1710960633430,-500.0,0.00024891,2]
[319754787,1710960633440,-500.0,0.00024891,2]
[319754788,1710960633450,-500.0,0.00024891,2]
[319754789,1710960633459,-500.0,0.00024891,2]
[319754790,1710960633468,-500.0,0.00024891,2]
[319754791,1710960633477,-500.0,0.00024891,2]
[319754792,1710960633486,-500.0,0.00024891,2]
[319754793,1710960633495,-500.0,0.00024891,2]
[319754794,1710960633503,-500.0,0.00024891,2]
[319754795,1710960633513,-500.0,0.00024891,2]
[319754796,1710960633522,-500.0,0.00024891,2]
[319754797,1710960633532,-500.0,0.00024891,2]
[319754798,1710960633542,-238.31364632,0.00024891,2]
[319754799,1710960633553,-500.0,0.00024891,2]
[319754800,1710960633562,-500.0,0.00024891,2]
[319754801,1710960633571,-612.73,0.00024891,2]
[319754802,1710960633581,-3005.83,0.00024891,2]
[319754803,1710960633590,-500.0,0.00024891,2]
[319754804,1710960633601,-2274.03,0.00024891,2]
[319754805,1710960633610,-550.06,0.00024891,2]
[319754806,1710960633620,-500.0,0.00024891,2]
[319754807,1710960633629,-500.0,0.00024891,2]
[319754808,1710960633639,-1662.96,0.00024891,2]
[319754809,1710960633648,-500.0,0.00024891,2]
[319754810,1710960633658,-395.24394637,0.00024891,2]
[319754811,1710960633667,-500.0,0.00024891,2]
[319754812,1710960633676,-500.0,0.00024891,2]
[319754813,1710960633686,-500.0,0.00024891,2]
[319754814,1710960633695,-30480.36,0.00024891,2]
[319754815,1710960633704,-500.0,0.00024891,2]
[319754816,1710960633713,-500.0,0.00024891,2]
[319754817,1710960633722,-1848.54,0.00024891,2]
[319754818,1710960633732,-500.0,0.00024891,2]
[319754819,1710960633742,-500.0,0.00024891,2]
[319754820,1710960633751,-500.0,0.00024891,2]
[319754821,1710960633760,-2933.32592043,0.00024891,2]
[319754822,1710960633769,-213.83008223,0.00024891,2]
[319754823,1710960633779,-182.83637761,0.00024891,2]
[319754824,1710960633788,-500.0,0.00024891,2]
[319754825,1710960633801,-1084.63,0.00024891,2]
[319754826,1710960633812,-2272.92,0.00024891,2]
[319754827,1710960633821,-500.0,0.0002499,2]
[319754828,1710960633831,-399.54646128,0.0002499,2]
[319754829,1710960633841,-500.0,0.0002499,2]
[319754830,1710960633850,-500.0,0.0002499,2]
[319754831,1710960633860,-500.0,0.0002499,2]
[319754832,1710960633869,-500.0,0.0002499,2]
[319754833,1710960633878,-500.0,0.0002499,2]
[319754834,1710960633887,-500.0,0.0002499,2]
[319754835,1710960633897,-500.0,0.0002499,2]
[319754836,1710960633906,-275.2653267,0.00024991,2]
[319754837,1710960633915,-179.99866843,0.00024991,2]
[319754838,1710960633924,-311.79893983,0.00024991,2]
[319754839,1710960634029,-205.03177245,0.00024991,2]
[319754840,1710960634045,-291.06323395,0.00024991,2]
[319754841,1710960634058,-685.06399665,0.00024991,2]
[319754842,1710960634068,-239.09546587,0.00024991,2]
[319754843,1710960634077,-280.37458214,0.00024991,2]
[319754844,1710960634086,-500.0,0.00024991,2]
[319754845,1710960634095,-500.0,0.00024991,2]
[319754846,1710960634105,-500.0,0.00024991,2]
[319754847,1710960634114,-500.0,0.00024991,2]
[319754848,1710960634123,-866.23,0.00024991,2]
[319754849,1710960634132,-500.0,0.00024991,2]
[319754850,1710960634142,-500.0,0.00024991,2]
[319754851,1710960634151,-500.0,0.00024991,2]
[319754852,1710960634161,-500.0,0.00024991,2]
[319754853,1710960634171,-1002.92,0.00024991,2]
[319754854,1710960634181,-500.0,0.00024991,2]
[319754855,1710960634192,-530.78,0.00024991,2]
[319754856,1710960634202,-500.0,0.00024991,2]
[319754857,1710960634211,-500.0,0.00024991,2]
[319754858,1710960634221,-500.0,0.00024991,2]
[319754859,1710960634231,-500.0,0.00024991,2]
[319754860,1710960634240,-500.0,0.00024991,2]
[319754861,1710960634249,-500.0,0.00024991,2]
[319754862,1710960634258,-623.54,0.00024991,2]
[319754863,1710960634267,-361.12896226,0.00024991,2]
[319754864,1710960634277,-500.0,0.00024991,2]
[319754865,1710960634286,-500.0,0.00024991,2]
[319754866,1710960634295,-524.52,0.00024991,2]
[319754867,1710960634308,-500.0,0.00024991,2]
[319754868,1710960634317,-500.0,0.00024991,2]
[319754869,1710960634326,-500.0,0.00024991,2]
[319754870,1710960634337,-500.0,0.00024991,2]
[319754871,1710960634347,-500.0,0.00025062,2]
[319754872,1710960634356,-1461.09,0.00025062,2]
[319754873,1710960634366,-500.0,0.00025063,2]
[319754874,1710960634375,-1065.56,0.00025063,2]
[319754875,1710960634385,-16002.02500108,0.00025063,2]
[319754876,1710960634399,-1815.51499892,0.00025063,2]
[319754877,1710960634409,-3469.32,0.00025063,2]
[319754878,1710960634418,-500.0,0.00025063,2]
[319754879,1710960634428,-500.0,0.00025063,2]
[319754880,1710960634438,-4194.59,0.00025063,2]
[319754881,1710960634449,-16589.11,0.00025063,2]
[319754882,1710960634459,-500.0,0.00025064,2]
[319754883,1710960634468,-899.412705,0.00025064,2]
[319754884,1710960634477,-899.412705,0.00025064,2]
[319754885,1710960634486,-500.0,0.00025064,2]
[319754886,1710960634495,-500.0,0.00025064,2]
[319754887,1710960634505,-500.0,0.00025064,2]
[319754888,1710960634514,-151.0,0.00025064,2]
[319754889,1710960634523,-151.0,0.00025064,2]
[319754890,1710960634532,-541.2,0.00025064,2]
[319754891,1710960634542,-500.0,0.00025064,2]
[319754892,1710960634553,-151.0,0.00025064,2]
[319754893,1710960634562,-500.0,0.00025064,2]
[319754894,1710960634571,-151.0,0.00025064,2]
[319754895,1710960634580,-500.0,0.00025064,2]
[319754896,1710960634589,-539.49337,0.00025064,2]
[319754897,1710960634598,-212.50213501,0.00025064,2]
[319754898,1710960634607,-539.49337,0.00025064,2]
[319754899,1710960634616,-673.72,0.00025064,2]
[319754900,1710960634625,-2639.26,0.00025064,2]
[319754901,1710960634633,-754.52,0.00025064,2]
[319754902,1710960634643,-605.85,0.00025064,2]
[319754903,1710960634651,-16522.46,0.00025064,2]
[319754904,1710960634661,-1514.03,0.00025064,2]
[319754905,1710960634670,-500.0,0.00025064,2]
[319754906,1710960634679,-3395.97,0.00025064,2]
[319754907,1710960634688,-603.98,0.00025064,2]
[319754908,1710960634698,-2434.01,0.00025064,2]
[319754909,1710960634707,-1427.17,0.00025064,2]
[319754910,1710960634716,-500.0,0.00025064,2]
[319754911,1710960634726,-1873.09,0.00025064,2]
[319754912,1710960634735,-765.33,0.00025064,2]
[319754913,1710960634744,-878.18,0.00025064,2]
[319754914,1710960634753,-956.11,0.00025064,2]
[319754915,1710960634762,-500.0,0.00025064,2]
[319754916,1710960634772,-1849.78,0.00025064,2]
[319754917,1710960634781,-593.48,0.00025064,2]
[319754918,1710960634792,-151.0,0.00025064,2]
[319754919,1710960634804,-2567.3,0.00025064,2]
[319754920,1710960634813,-500.0,0.00025064,2]
[319754921,1710960634823,-1236.9,0.00025064,2]
[319754922,1710960634832,-151.0,0.00025064,2]
[319754923,1710960634841,-500.0,0.00025064,2]
[319754924,1710960634850,-151.0,0.00025064,2]
[319754925,1710960634859,-500.0,0.00025064,2]
[319754926,1710960634869,-1417.33,0.00025064,2]
[319754927,1710960634878,-575.08,0.00025064,2]
[319754928,1710960634887,-500.0,0.00025064,2]
[319754929,1710960634896,-1630.38,0.00025064,2]
[319754930,1710960634905,-500.0,0.00025064,2]
[319754931,1710960634914,-556.81,0.00025064,2]
[319754932,1710960634923,-500.0,0.00025064,2]
[319754933,1710960634931,-8596.48,0.00025064,2]
[319754934,1710960634940,-500.0,0.00025064,2]
[319754935,1710960634949,-621.63759235,0.00025116,2]
[319754936,1710960634958,-500.0,0.00025165,2]
[319754937,1710960634967,-500.0,0.00025165,2]
[319754938,1710960634976,-500.0,0.00025165,2]
[319754939,1710960634985,-500.0,0.00025165,2]
[319754940,1710960634994,-500.0,0.00025165,2]
[319754941,1710960635004,-500.0,0.00025165,2]
[319754942,1710960635013,-624.989434,0.00025165,2]
[319754943,1710960635023,-500.0,0.00025165,2]
[319754944,1710960635033,-500.0,0.00025165,2]
[319754945,1710960635042,-500.0,0.00025165,2]
[319754946,1710960635056,-619.66,0.00025165,2]
[319754947,1710960635065,-500.0,0.00025165,2]
[319754948,1710960635075,-772.49,0.00025165,2]
[319754949,1710960635084,-661.82,0.00025165,2]
[319754950,1710960635094,-151.0,0.00025165,2]
[319754951,1710960635104,-500.0,0.00025165,2]
[319754952,1710960635114,-500.0,0.00025165,2]
[319754953,1710960635124,-500.0,0.00025165,2]
[319754954,1710960635134,-781.49,0.00025165,2]
[319754955,1710960635144,-2387.7,0.00025165,2]
[319754956,1710960635155,-500.0,0.00025165,2]
[319754957,1710960635164,-555.87,0.00025165,2]
[319754958,1710960635174,-500.0,0.00025165,2]
[319754959,1710960635184,-500.0,0.00025165,2]
[319754960,1710960635194,-875.62,0.00025165,2]
[319754961,1710960635204,-712.76,0.00025165,2]
[319754962,1710960635213,-899.412705,0.00025165,2]
[319754963,1710960635223,-500.0,0.00025165,2]
[319754964,1710960635233,-899.412705,0.00025165,2]
[319754965,1710960635244,-500.0,0.00025165,2]
[319754966,1710960635254,-500.0,0.00025165,2]
[319754967,1710960635264,-500.0,0.00025165,2]
[319754968,1710960635274,-500.0,0.00025165,2]
[319754969,1710960635283,-151.0,0.00025165,2]
[319754970,1710960635292,-151.0,0.00025165,2]
[319754971,1710960635306,-500.0,0.00025165,2]
[319754972,1710960635316,-151.0,0.00025165,2]
[319754973,1710960635327,-151.0,0.00025165,2]
[319754974,1710960635338,-500.0,0.00025165,2]
[319754975,1710960635352,-500.0,0.00025165,2]
[319754976,1710960635362,-612.73,0.00025165,2]
[319754977,1710960635373,-3005.83,0.00025165,2]
[319754978,1710960635383,-500.0,0.00025165,2]
[319754979,1710960635394,-2274.03,0.00025165,2]
[319754980,1710960635404,-539.49337,0.00025165,2]
[319754981,1710960635417,-550.06,0.00025165,2]
[319754982,1710960635427,-539.49337,0.00025165,2]
[319754983,1710960635439,-430.319638,0.00025165,2]
[319754984,1710960635449,-430.319638,0.00025165,2]
[319754985,1710960635459,-500.0,0.00025165,2]
[319754986,1710960635468,-1662.96,0.00025165,2]
[319754987,1710960635478,-500.0,0.00025165,2]
[319754988,1710960635487,-500.0,0.00025165,2]
[319754989,1710960635497,-644.89712825,0.00025165,2]
[319754990,1710960635507,-500.0,0.00025165,2]
[319754991,1710960635518,-500.0,0.00025165,2]
[319754992,1710960635527,-151.0,0.00025165,2]
[319754993,1710960635536,-30480.36,0.00025165,2]
[319754994,1710960635545,-151.0,0.00025165,2]
[319754995,1710960635559,-151.0,0.00025165,2]
[319754996,1710960635569,-500.0,0.00025165,2]
[319754997,1710960635578,-500.0,0.00025165,2]
[319754998,1710960635588,-1848.54,0.00025165,2]
[319754999,1710960635598,-500.0,0.00025165,2]
[319755000,1710960635608,-500.0,0.00025165,2]
[319755001,1710960635618,-500.0,0.00025165,2]
[319755002,1710960635627,-500.0,0.00025165,2]
[319755003,1710960635637,-97.48504879,0.00025165,2]
[319755004,1710960635650,-570.0,0.00025165,2]
[319755052,1710960638084,-417.14495121,0.00025165,2]
[319755054,1710960638094,-2272.92,0.00025165,2]
[319755056,1710960638103,-156.47252438,0.00025246,2]
[319755058,1710960638113,-500.0,0.00025264,2]
[319755066,1710960638207,-500.0,0.00025264,2]
[319755069,1710960638235,-500.0,0.00025264,2]
[319755071,1710960638243,-500.0,0.00025264,2]
[319755073,1710960638252,-500.0,0.00025264,2]
[319755075,1710960638262,-500.0,0.00025264,2]
[319755076,1710960638271,-500.0,0.00025264,2]
[319755079,1710960638281,-500.0,0.00025265,2]
[319755080,1710960638290,-500.0,0.00025265,2]
[319755082,1710960638299,-500.0,0.00025265,2]
[319755085,1710960638311,-500.0,0.00025265,2]
[319755086,1710960638320,-500.0,0.00025265,2]
[319755088,1710960638329,-526.67,0.00025265,2]
[319755090,1710960638338,-500.0,0.00025265,2]
[319755092,1710960638347,-500.0,0.00025265,2]
[319755094,1710960638356,-500.0,0.00025265,2]
[319755096,1710960638365,-866.23,0.00025265,2]
[319755098,1710960638375,-500.0,0.00025265,2]
[319755100,1710960638384,-500.0,0.00025265,2]
[319755102,1710960638393,-500.0,0.00025265,2]
[319755104,1710960638402,-500.0,0.00025265,2]
[319755106,1710960638413,-1002.92,0.00025265,2]
[319755108,1710960638424,-257.64252441,0.00025265,2]
[319755111,1710960638436,-242.35747559,0.00025265,2]
[319755113,1710960638445,-530.78,0.00025265,2]
[319755115,1710960638455,-500.0,0.00025265,2]
[319755117,1710960638464,-500.0,0.00025265,2]
[319755119,1710960638473,-559.4242566,0.00025265,2]
[319755121,1710960638482,-500.0,0.00025265,2]
[319755123,1710960638491,-500.0,0.00025265,2]
[319755125,1710960638504,-500.0,0.00025265,2]
[319755126,1710960638513,-623.54,0.00025265,2]
[319755128,1710960638522,-500.0,0.00025265,2]
[319755130,1710960638531,-500.0,0.00025265,2]
[319755132,1710960638540,-524.52,0.00025265,2]
[319755134,1710960638549,-500.0,0.00025265,2]
[319755136,1710960638560,-500.0,0.00025265,2]
[319755139,1710960638573,-500.0,0.00025265,2]
[319755141,1710960638590,-500.0,0.00025265,2]
[319755143,1710960638599,-151.0,0.00025266,2]
[319755145,1710960638609,-292.50009999,0.00025271,2]
[319755147,1710960638618,-500.0,0.00025336,2]
[319755149,1710960638627,-1461.09,0.00025336,2]
[319755151,1710960638636,-539.49337,0.00025337,2]
[319755152,1710960638646,-539.49337,0.00025337,2]
[319755153,1710960638655,-500.0,0.00025337,2]
[319755154,1710960638665,-1065.56,0.00025337,2]
[319755155,1710960638674,-3911.68058946,0.00025337,2]
[319755156,1710960638686,-12270.36545695,0.00025337,2]
[319755719,1710960643215,-315.32997462,0.00024789,2]
[319756019,1710960646248,-15972.10775663,0.00023805,2]
[319756021,1710960646259,-683.2104041,0.00024788,2]
[319756023,1710960646269,-239.17077989,0.00024788,2]
[319756025,1710960646279,-500.0,0.00024788,2]
[319756028,1710960646288,-420.89247311,0.00024788,2]
[319756030,1710960646298,-184.67002538,0.00024789,2]
[319756033,1710960646312,-584.32890636,0.0002479,2]
[319756035,1710960646320,-583.95,0.0002479,2]
[319756037,1710960646330,-2354.74,0.0002479,2]
[319756039,1710960646340,-500.0,0.00025063,2]
[319756041,1710960646349,-583.95,0.00025064,2]
[319756043,1710960646358,-2354.74,0.00025064,2]
[319756045,1710960646367,-1635.49395359,0.00025337,2]
[319756047,1710960646376,-3469.32,0.00025337,2]
[319756049,1710960646385,-501.25867529,0.00025337,2]
[319756051,1710960646395,-500.0,0.00025337,2]
[319756053,1710960646404,-4194.59,0.00025337,2]
[319756055,1710960646415,-16589.11,0.00025337,2]
[319756057,1710960646424,-500.0,0.00025337,2]
[319756059,1710960646433,-500.0,0.00025338,2]
[319756061,1710960646443,-899.412705,0.00025338,2]
[319756063,1710960646453,-899.412705,0.00025338,2]
[319756065,1710960646462,-500.0,0.00025338,2]
[319756067,1710960646471,-500.0,0.00025338,2]
[319756069,1710960646480,-500.0,0.00025338,2]
[319756071,1710960646489,-151.0,0.00025338,2]
[319756073,1710960646499,-151.0,0.00025338,2]
[319756075,1710960646508,-541.2,0.00025338,2]
[319756078,1710960646517,-500.0,0.00025338,2]
[319756080,1710960646526,-500.0,0.00025338,2]
[319756082,1710960646537,-151.0,0.00025338,2]
[319756083,1710960646546,-221.173067,0.00025338,2]
[319756086,1710960646555,-500.0,0.00025338,2]
[319756087,1710960646567,-430.319638,0.00025338,2]
[319756090,1710960646576,-430.319638,0.00025338,2]
[319756092,1710960646586,-673.72,0.00025338,2]
[319756094,1710960646595,-754.52,0.00025338,2]
[319756096,1710960646605,-16522.46,0.00025338,2]
[319756098,1710960646615,-1514.03,0.00025338,2]
[319756100,1710960646625,-1153.88644856,0.00025338,2]
[319767077,1710960812595,1740599.64478091,0.00030201,60]
[319767080,1710960832210,2008.45340021,0.00017,2]
[319767081,1710960834627,20491.9126757,0.0002,2]
[319767083,1710960877191,278.29715164,0.00030118,30]
[319767084,1710960878194,734.73487484,0.00021,2]
[319767085,1710960878807,9933.89315268,0.00021,2]
[319767086,1710960878846,195.75956621,0.00021,2]
[319767087,1710960879467,35619.17821476,0.00030118,30]
[319767095,1710961247887,-1919.09606837,0.00021,2]
[319767096,1710961247912,-191.84776158,0.00021,2]
[319767097,1710961247937,-783.57894867,0.00021,2]
[319767098,1710961247961,-539.22321355,0.00021001,2]
[319767099,1710961247983,-205.03177245,0.00021001,2]
[319767100,1710961248005,-366.62315762,0.00021002,2]
[319767101,1710961248031,-602.76739922,0.00021002,2]
[319767102,1710961248052,-322.45069646,0.00021003,2]
[319767103,1710961248073,-154.90705577,0.00021004,2]
[319767104,1710961248094,-156.21736877,0.00021004,2]
[319767105,1710961248115,-3504.14814187,0.00021004,2]
[319767106,1710961248136,-340.10841567,0.00021005,2]
[319767107,1710961252812,3436.23958139,0.00020999,2]
[319767108,1710961264501,1701.0,0.00035616,120]
[319767110,1710961317297,602.76739922,0.00020999,2]
[319767111,1710961320172,-405.14954919,0.00021,2]
[319767112,1710961320192,-210.03782905,0.00021001,2]
[319767113,1710961320213,-154.90705577,0.00021001,2]
[319767114,1710961320234,-212.37767704,0.00021002,2]
[319767115,1710961320256,-3274.401257,0.00021002,2]
[319767116,1710961320281,-269.83823354,0.00021002,2]
[319767117,1710961320303,-2745.78191176,0.00021003,2]
[319767118,1710961320332,-1034.53581213,0.00021005,2]
[319767119,1710961322431,154.90705577,0.00020999,2]
[319767120,1710961322533,1474.06361875,0.00020999,2]
[319767121,1710961322555,135.00354128,0.00020999,2]
[319767122,1710961323114,191.84776158,0.00020999,2]
[319767126,1710961357740,157.706982,0.00026575,120]
[319767127,1710961374774,364.4999781,0.00020485,2]
[319767128,1710961504959,278.099764,0.00020461,2]
[319767129,1710961612220,188.9602974,0.00020444,2]
[319767131,1710961696245,154.90705577,0.00020444,2]
[319767132,1710961715846,10000.0,0.0002,3]
[319767133,1710961718194,154.90705577,0.00020444,2]
[319767134,1710961737380,154.90705577,0.00020444,2]
[319767135,1710961753816,237.0359856,0.00020622,2]
[319767137,1710961758189,171.25883269,0.00020444,2]
[319767138,1710961759169,-154.90705577,0.00021267,2]
[319767139,1710961759190,-154.90705577,0.00021267,2]
[319767140,1710961759212,-685.20411728,0.00021267,2]
[319767141,1710961759232,-783.57894867,0.00021268,2]
[319767142,1710961759253,-807.30445512,0.00021268,2]
[319767143,1710961759273,-337.18867591,0.00021268,2]
[319767144,1710961759293,-154.90705577,0.00021269,2]
[319767145,1710961759313,-1571.32607788,0.00021269,2]
[319767146,1710961759333,-98.07576641,0.0002127,2]
[319767147,1710961764157,-3504.14814187,0.00021266,2]
[319767148,1710961764347,-683.2104041,0.00021266,2]
[319767149,1710961764371,-366.62315762,0.00021267,2]
[319767150,1710961764393,-302.11520456,0.00021267,2]
[319767151,1710961764413,-154.90705577,0.00021267,2]
[319767152,1710961764434,-106.95600604,0.0002127,2]
[319767153,1710961764457,-1476.73003936,0.0002127,2]
[319767154,1710961764477,-212.37767704,0.00021271,2]
[319767155,1710961764497,-275.34632078,0.00021271,2]
[319767156,1710961764517,-300.0,0.00021271,2]
[319767157,1710961764538,-2602.41354396,0.00021272,2]
[319767158,1710961764558,-1609.06716003,0.00021272,2]
[319767159,1710961764579,-158.4418361,0.00021363,2]
[319767160,1710961764598,-249.44718422,0.00021675,2]
[319767161,1710961764623,-564.81009707,0.00021675,2]
[319767162,1710961764643,-301.30557888,0.00021675,2]
[319767163,1710961764663,-296.90575211,0.00021675,2]
[319767164,1710961764682,-536.36461442,0.00021675,2]
[319767165,1710961764702,-2732.56740642,0.00021675,2]
[319767166,1710961764721,-293.7711974,0.00021675,2]
[319767167,1710961764742,-271.37542683,0.00021675,2]
[319767168,1710961764763,-343.03276652,0.00021675,2]
[319767169,1710961764784,-1744.03787918,0.00021676,2]
[319767170,1710961764806,-171.91618237,0.00021676,2]
[319767171,1710961764827,-322.32616177,0.00021676,2]
[319767172,1710961764847,-500.0,0.00021676,2]
[319767173,1710961764873,-385.84072389,0.00021676,2]
[319767174,1710961764892,-595.50722637,0.00021676,2]
[319767175,1710961764911,-24900.0,0.00021677,2]
[319767176,1710961764931,-157.50519909,0.00022,2]
[319767177,1710961764950,-1618.00449362,0.00022,2]
[319767178,1710961764971,-178.21749972,0.00023102,2]
[319767179,1710961764990,-150.0,0.00023398,2]
[319767180,1710961765010,-2000.0,0.00023491,2]
[319767181,1710961765030,-757.39537758,0.00023805,2]
[319767182,1710961767129,24900.0,0.00020533,2]
[319767184,1710961772762,310.90538466,0.00020591,2]
[319767196,1710961809738,154.90705577,0.00020591,2]
[319767206,1710961817415,154.90705577,0.00020591,2]
[319767231,1710961831620,161.02109969,0.00020591,2]
[319767363,1710961832669,-154.92253873,0.00021675,2]
[319767364,1710961832679,-20.09099437,0.00023805,2]
[319767367,1710961832689,-6732.9872,0.00024178,2]
[319767370,1710961832699,-2000.0,0.00024179,2]
[319767372,1710961832708,-284.6233908,0.00024678,2]
[319767374,1710961832717,-1000.0,0.00024689,2]
[319767376,1710961832727,-154.92253873,0.00024785,2]
[319767378,1710961832737,-400.0,0.00024785,2]
[319767380,1710961832747,-814.96064088,0.00024785,2]
[319767382,1710961832757,-290.98092274,0.00024785,2]
[319767384,1710961832768,-160.68166387,0.00024785,2]
[319767386,1710961832777,-477.27843742,0.00024785,2]
[319767388,1710961832786,-155.15509293,0.00024785,2]
[319767390,1710961832796,-275.34632178,0.00024785,2]
[319767392,1710961832807,-685.06399665,0.00024785,2]
[319767403,1710961832934,-838.17395454,0.00024785,2]
[319767404,1710961832952,-2602.41354396,0.00024785,2]
[319767406,1710961832963,-309.82957099,0.00024785,2]
[319767407,1710961832972,-1618.00449362,0.00024785,2]
[319767408,1710961832982,-157.88671016,0.00024785,2]
[319767409,1710961832992,-302.11520456,0.00024785,2]
[319767410,1710961833002,-159.96121276,0.00024785,2]
[319767411,1710961833011,-254.45897514,0.00024785,2]
[319767412,1710961833021,-1571.32607788,0.00024785,2]
[319767413,1710961833031,-2865.73307262,0.00024785,2]
[319767415,1710961833040,-683.01846586,0.00024785,2]
[319767416,1710961833050,-205.03177245,0.00024785,2]
[319767417,1710961833059,-233.08538529,0.00024785,2]
[319767419,1710961833069,-1991.16563529,0.00024786,2]
[319767420,1710961833079,-301.99309123,0.00024786,2]
[319767421,1710961833088,-500.0,0.00024786,2]
[319767422,1710961833097,-500.0,0.00024786,2]
[319767423,1710961833107,-1432.42,0.00024786,2]
[319767425,1710961833117,-359.6942461,0.00024786,2]
[319767426,1710961833126,-286.51108662,0.00024786,2]
[319767427,1710961833135,-500.0,0.00024786,2]
[319767428,1710961833145,-500.0,0.00024786,2]
[319767430,1710961833155,-276.26774194,0.00024786,2]
[319767431,1710961833167,-500.0,0.00024786,2]
[319767432,1710961833176,-500.0,0.00024786,2]
[319767434,1710961833186,-480.15856883,0.00024786,2]
[319767435,1710961833195,-500.0,0.00024787,2]
[319767436,1710961833204,-500.0,0.00024787,2]
[319767437,1710961833213,-500.0,0.00024787,2]
[319767438,1710961833223,-500.0,0.00024787,2]
[319767439,1710961833232,-500.0,0.00024787,2]
[319767440,1710961833242,-500.0,0.00024787,2]
[319767441,1710961833251,-500.0,0.00024787,2]
[319767442,1710961833261,-500.0,0.00024787,2]
[319767443,1710961833270,-500.0,0.00024787,2]
[319767444,1710961833279,-500.0,0.00024787,2]
[319767445,1710961833289,-529.5,0.00024787,2]
[319767446,1710961833298,-500.0,0.00024787,2]
[319767447,1710961833307,-500.0,0.00024787,2]
[319767448,1710961833316,-500.0,0.00024787,2]
[319767449,1710961833325,-500.0,0.00024787,2]
[319767450,1710961833334,-500.0,0.00024787,2]
[319767451,1710961833344,-500.0,0.00024787,2]
[319767452,1710961833353,-500.0,0.00024787,2]
[319767453,1710961833363,-500.0,0.00024787,2]
[319767454,1710961833372,-500.0,0.00024787,2]
[319767455,1710961833381,-500.0,0.00024787,2]
[319767456,1710961833390,-659.16,0.00024787,2]
[319767457,1710961833400,-500.0,0.00024787,2]
[319767458,1710961833410,-500.0,0.00024787,2]
[319767459,1710961833421,-500.0,0.00024787,2]
[319767460,1710961833431,-500.0,0.00024787,2]
[319767461,1710961833440,-932.37,0.00024787,2]
[319767462,1710961833449,-701.55,0.00024787,2]
[319767463,1710961833458,-500.0,0.00024787,2]
[319767464,1710961833467,-500.0,0.00024787,2]
[319767465,1710961833477,-15413.08,0.00024787,2]
[319767466,1710961833486,-1466.71,0.00024787,2]
[319767467,1710961833495,-500.0,0.00024787,2]
[319767468,1710961833504,-3182.37,0.00024787,2]
[319767469,1710961833513,-2158.51,0.00024787,2]
[319767470,1710961833524,-15590.35,0.00024787,2]
[319767471,1710961833535,-500.0,0.00024787,2]
[319767472,1710961833544,-1383.74,0.00024787,2]
[319767473,1710961833553,-500.0,0.00024787,2]
[319767474,1710961833562,-710.49,0.00024787,2]
[319767475,1710961833571,-1816.6,0.00024787,2]
[319767476,1710961833580,-544.03,0.00024787,2]